fUST/lending_fUST_20250921
["ID","MTS","AMOUNT","RATE_DAILY","PERIOD"]
[386645180,1758449444210,-480.0,0.00019452,2]
[386645181,1758449444220,-480.0,0.00019452,2]
[386645182,1758449444325,-480.0,0.00019452,2]
[386645183,1758449444335,-398.19971122,0.00019452,2]
[386645184,1758449444345,-480.0,0.00019452,2]
[386645185,1758449444354,-480.0,0.00019452,2]
[386645186,1758449444363,-480.0,0.00019452,2]
[386645187,1758449444373,-294.94414767,0.00019452,2]
[386645188,1758449444382,-483.15185019,0.00019452,2]
[386645189,1758449444391,-480.0,0.00019452,2]
[386645190,1758449444400,-325.75698031,0.00019452,2]
[386645191,1758449444413,-480.0,0.00019452,2]
[386645192,1758449444423,-483.05641242,0.00019452,2]
[386645193,1758449444432,-480.0,0.00019452,2]
[386645194,1758449444441,-486.57081854,0.00019452,2]
[386645195,1758449444451,-480.0,0.00019452,2]
[386645196,1758449444459,-480.0,0.00019452,2]
[386645197,1758449444469,-480.0,0.00019452,2]
[386645199,1758449444478,-480.0,0.00019452,2]
[386645201,1758449444487,-480.0,0.00019452,2]
[386645203,1758449444497,-496.15901956,0.00019452,2]
[386645205,1758449444507,-480.0,0.00019452,2]
[386645207,1758449444516,-480.0,0.00019452,2]
[386645209,1758449444526,-480.0,0.00019452,2]
[386645211,1758449444536,-480.0,0.00019452,2]
[386645213,1758449444545,-480.0,0.00019452,2]
[386645215,1758449444554,-480.0,0.00019452,2]
[386645217,1758449444563,-480.0,0.00019452,2]
[386645219,1758449444573,-480.0,0.00019452,2]
[386645221,1758449444582,-480.0,0.00019452,2]
[386645223,1758449444591,-480.0,0.00019452,2]
[386645225,1758449444601,-484.50824546,0.00019452,2]
[386645227,1758449444610,-480.0,0.00019452,2]
[386645229,1758449444619,-895.0,0.00019452,2]
[386645231,1758449444628,-480.0,0.00019452,2]
[386645233,1758449444638,-483.98563472,0.00019452,2]
[386645235,1758449444653,-480.0,0.00019452,2]
[386645237,1758449444662,-480.0,0.00019452,2]
[386645239,1758449444671,-480.0,0.00019452,2]
[386645241,1758449444680,-480.0,0.00019452,2]
[386645243,1758449444690,-480.0,0.00019452,2]
[386645245,1758449444699,-480.0,0.00019452,2]
[386645247,1758449444709,-480.0,0.00019452,2]
[386645249,1758449444718,-480.0,0.00019452,2]
[386645251,1758449444727,-480.0,0.00019452,2]
[386645253,1758449444736,-480.0,0.00019452,2]
[386645255,1758449444746,-480.0,0.00019452,2]
[386645257,1758449444755,-480.0,0.00019452,2]
[386645259,1758449444765,-485.14500511,0.00019452,2]
[386645261,1758449444775,-1963.68,0.00019452,2]
[386645263,1758449444784,-480.0,0.00019452,2]
[386645265,1758449444793,-482.30784955,0.00019452,2]
[386645267,1758449444803,-480.0,0.00019452,2]
[386645269,1758449444812,-609.03,0.00019452,2]
[386645271,1758449444822,-483.44791574,0.00019452,2]
[386645273,1758449444831,-1884.45,0.00019452,2]
[386645275,1758449444840,-480.0,0.00019452,2]
[386645277,1758449444849,-480.0,0.00019452,2]
[386645279,1758449444858,-480.0,0.00019452,2]
[386645281,1758449444867,-922.44,0.00019452,2]
[386645283,1758449444878,-493.28223373,0.00019452,2]
[386645285,1758449444887,-480.0,0.00019452,2]
[386645286,1758449444897,-480.0,0.00019452,2]
[386645288,1758449444906,-480.0,0.00019452,2]
[386645290,1758449444915,-480.0,0.00019452,2]
[386645292,1758449444924,-480.0,0.00019452,2]
[386645294,1758449444934,-480.0,0.00019452,2]
[386645296,1758449444945,-480.0,0.00019452,2]
[386645298,1758449444954,-480.0,0.00019452,2]
[386645300,1758449444963,-486.56315369,0.00019452,2]
[386645302,1758449444973,-480.0,0.00019452,2]
[386645304,1758449444983,-485.86016087,0.00019452,2]
[386645306,1758449444992,-480.0,0.00019452,2]
[386645308,1758449445002,-480.0,0.00019452,2]
[386645310,1758449445012,-480.0,0.00019452,2]
[386645312,1758449445022,-480.0,0.00019452,2]
[386645314,1758449445031,-480.0,0.00019452,2]
[386645316,1758449445041,-556.54,0.00019452,2]
[386645318,1758449445050,-480.0,0.00019452,2]
[386645320,1758449445059,-480.0,0.00019452,2]
[386645322,1758449445068,-364.01,0.00019452,2]
[386645324,1758449445078,-480.0,0.00019452,2]
[386645326,1758449445087,-625.12520368,0.00019452,2]
[386645328,1758449445097,-480.0,0.00019452,2]
[386645330,1758449445106,-480.0,0.00019452,2]
[386645332,1758449445115,-480.0,0.00019452,2]
[386645334,1758449445124,-491.19238256,0.00019452,2]
[386645336,1758449445133,-480.0,0.00019452,2]
[386645338,1758449445143,-480.0,0.00019452,2]
[386645340,1758449445152,-885.02,0.00019452,2]
[386645342,1758449445161,-492.40475819,0.00019452,2]
[386645344,1758449445170,-937.39,0.00019452,2]
[386645346,1758449445180,-201.92136141,0.00019452,2]
[386645348,1758449445189,-480.0,0.00019452,2]
[386645351,1758449445198,-912.4,0.00019452,2]
[386645354,1758449445207,-476.07965935,0.00019452,2]
[386645357,1758449445216,-1198.91,0.00019452,2]
[386645360,1758449445225,-480.0,0.00019452,2]
[386645363,1758449445235,-11451.54,0.00019452,2]
[386645366,1758449445244,-480.0,0.00019452,2]
[386645370,1758449445253,-1900.65,0.00019452,2]
[386645374,1758449445263,-480.0,0.00019452,2]
[386645378,1758449445272,-503.64439466,0.00019452,2]
[386645383,1758449445282,-480.0,0.00019452,2]
[386645387,1758449445291,-480.0,0.00019452,2]
[386645390,1758449445300,-494.08952021,0.00019452,2]
[386645395,1758449445310,-480.0,0.00019452,2]
[386645398,1758449445319,-486.2602222,0.00019452,2]
[386645402,1758449445328,-480.0,0.00019452,2]
[386645406,1758449445337,-480.0,0.00019452,2]
[386645410,1758449445346,-480.0,0.00019452,2]
[386645413,1758449445355,-480.0,0.00019452,2]
[386645417,1758449445364,-480.0,0.00019452,2]
[386645421,1758449445373,-480.0,0.00019452,2]
[386645423,1758449445383,-480.0,0.00019452,2]
[386645427,1758449445392,-480.0,0.00019452,2]
[386645431,1758449445402,-480.0,0.00019452,2]
[386645435,1758449445415,-480.0,0.00019452,2]
[386645438,1758449445424,-480.0,0.00019452,2]
[386645442,1758449445434,-480.0,0.00019452,2]
[386645445,1758449445443,-481.80706522,0.00019452,2]
[386645449,1758449445453,-480.0,0.00019452,2]
[386645452,1758449445462,-480.0,0.00019452,2]
[386645456,1758449445471,-704.22,0.00019452,2]
[386645460,1758449445480,-480.0,0.00019452,2]
[386645462,1758449445489,-480.0,0.00019452,2]
[386645465,1758449445499,-203.03807062,0.00019452,2]
[386645468,1758449445508,-480.0,0.00019452,2]
[386645470,1758449445517,-480.0,0.00019452,2]
[386645473,1758449445526,-480.0,0.00019452,2]
[386645476,1758449445536,-480.0,0.00019452,2]
[386645478,1758449445545,-480.0,0.00019452,2]
[386645481,1758449445554,-480.0,0.00019452,2]
[386645484,1758449445563,-480.0,0.00019452,2]
[386645487,1758449445572,-480.0,0.00019452,2]
[386645489,1758449445581,-480.0,0.00019452,2]
[386645492,1758449445591,-480.0,0.00019452,2]
[386645495,1758449445600,-480.0,0.00019452,2]
[386645497,1758449445609,-318.12005239,0.00019452,2]
[386645500,1758449445618,-483.56819813,0.00019452,2]
[386645503,1758449445628,-480.0,0.00019452,2]
[386645506,1758449445637,-480.0,0.00019452,2]
[386645508,1758449445646,-480.0,0.00019452,2]
[386645511,1758449445656,-480.0,0.00019452,2]
[386645514,1758449445665,-480.0,0.00019452,2]
[386645516,1758449445674,-480.0,0.00019452,2]
[386645518,1758449445684,-480.0,0.00019452,2]
[386645519,1758449445693,-480.0,0.00019452,2]
[386645521,1758449445703,-480.0,0.00019452,2]
[386645523,1758449445712,-480.0,0.00019452,2]
[386645525,1758449445722,-535.31408818,0.00019452,2]
[386645527,1758449445732,-885.37,0.00019452,2]
[386645528,1758449445741,-480.0,0.00019452,2]
[386645530,1758449445750,-480.0,0.00019452,2]
[386645532,1758449445759,-480.0,0.00019452,2]
[386645534,1758449445769,-2976.51,0.00019452,2]
[386645535,1758449445779,-480.0,0.00019452,2]
[386645544,1758449445788,-151.28599563,0.00019452,2]
[386645546,1758449445870,-1683.02,0.00019452,2]
[386645547,1758449445879,-480.0,0.00019452,2]
[386645549,1758449445888,-480.0,0.00019452,2]
[386645551,1758449445897,-643.42,0.00019452,2]
[386645553,1758449445906,-435.59626398,0.00019452,2]
[386645554,1758449445915,-581.85,0.00019452,2]
[386645556,1758449445924,-480.0,0.00019452,2]
[386645558,1758449445933,-480.0,0.00019452,2]
[386645560,1758449445943,-480.0,0.00019452,2]
[386645562,1758449445951,-515.77131419,0.00019452,2]
[386645563,1758449445961,-480.0,0.00019452,2]
[386645565,1758449445970,-489.54718786,0.00019452,2]
[386645567,1758449445980,-721.89,0.00019452,2]
[386645569,1758449445989,-480.0,0.00019452,2]
[386645571,1758449445998,-486.24179082,0.00019452,2]
[386645572,1758449446007,-480.0,0.00019452,2]
[386645574,1758449446017,-169.79034972,0.00019452,2]
[386645576,1758449446026,-488.21816104,0.00019452,2]
[386645578,1758449446035,-480.0,0.00019452,2]
[386645580,1758449446044,-480.0,0.00019452,2]
[386645581,1758449446053,-966.67,0.00019452,2]
[386645583,1758449446062,-480.0,0.00019452,2]
[386645585,1758449446071,-480.0,0.00019452,2]
[386645587,1758449446080,-480.0,0.00019452,2]
[386645589,1758449446089,-421.53697244,0.00019452,2]
[386645590,1758449446098,-480.0,0.00019452,2]
[386645592,1758449446107,-480.0,0.00019452,2]
[386645594,1758449446117,-480.0,0.00019452,2]
[386645596,1758449446126,-480.0,0.00019452,2]
[386645598,1758449446135,-480.0,0.00019452,2]
[386645599,1758449446144,-595.29,0.00019452,2]
[386645601,1758449446153,-480.0,0.00019452,2]
[386645603,1758449446162,-480.0,0.00019452,2]
[386645605,1758449446171,-480.0,0.00019452,2]
[386645607,1758449446180,-480.0,0.00019452,2]
[386645608,1758449446190,-1353.47,0.00019452,2]
[386645610,1758449446198,-500.0,0.00019452,2]
[386645612,1758449446208,-325.40730612,0.00019473,2]
[386645614,1758449446217,-506.38224766,0.00019473,2]
[386645616,1758449446226,-500.0,0.00019473,2]
[386645617,1758449446235,-500.0,0.00019473,2]
[386645619,1758449446245,-500.0,0.00019473,2]
[386645621,1758449446254,-501.36366912,0.00019473,2]
[386645623,1758449446263,-379.56872956,0.00019473,2]
[386645625,1758449446273,-500.0,0.00019473,2]
[386645626,1758449446282,-500.0,0.00019473,2]
[386645628,1758449446291,-500.0,0.00019473,2]
[386645630,1758449446300,-501.50504097,0.00019473,2]
[386645632,1758449446309,-500.0,0.00019473,2]
[386645634,1758449446318,-500.0,0.00019473,2]
[386645636,1758449446329,-500.0,0.00019473,2]
[386645637,1758449446340,-502.54245109,0.00019473,2]
[386645639,1758449446350,-500.0,0.00019473,2]
[386645641,1758449446359,-218.50890747,0.00019473,2]
[386645643,1758449446368,-500.0,0.00019473,2]
[386645644,1758449446377,-500.0,0.00019473,2]
[386645646,1758449446386,-500.0,0.00019473,2]
[386645648,1758449446395,-500.0,0.00019473,2]
[386645650,1758449446405,-511.0021489,0.00019473,2]
[386645652,1758449446417,-500.0,0.00019473,2]
[386645654,1758449446426,-500.53318302,0.00019473,2]
[386645655,1758449446435,-361.28,0.00019621,2]
[386645657,1758449446444,-500.0,0.00019625,2]
[386645659,1758449446455,-266.70724551,0.00019644,3]
[386645661,1758449446464,-695.19,0.00019686,2]
[386645663,1758449446473,-310.24916026,0.00019686,2]
[386645664,1758449446483,-1000.0,0.00019721,2]
[386645666,1758449446492,-1000.0,0.00019721,2]
[386645668,1758449446502,-500.0,0.00019725,2]
[386645670,1758449446511,-500.0,0.00019725,2]
[386645672,1758449446521,-335.7458491,0.00019725,2]
[386645673,1758449446530,-695.19,0.00019725,2]
[386645675,1758449446539,-695.19,0.00019725,2]
[386645677,1758449446549,-500.0,0.00019726,2]
[386645679,1758449446558,-480.0,0.00019726,2]
[386645681,1758449446567,-480.0,0.00019726,2]
[386645683,1758449446576,-480.0,0.00019726,2]
[386645684,1758449446585,-480.0,0.00019726,2]
[386645686,1758449446594,-480.0,0.00019726,2]
[386645688,1758449446605,-480.0,0.00019726,2]
[386645690,1758449446615,-480.0,0.00019726,2]
[386645692,1758449446624,-480.0,0.00019726,2]
[386645694,1758449446633,-480.0,0.00019726,2]
[386645695,1758449446642,-483.55149234,0.00019726,2]
[386645697,1758449446653,-480.0,0.00019726,2]
[386645699,1758449446662,-480.0,0.00019726,2]
[386645700,1758449446671,-480.0,0.00019726,2]
[386645701,1758449446681,-480.0,0.00019726,2]
[386645703,1758449446690,-385.01722467,0.00019726,2]
[386645704,1758449446699,-480.0,0.00019726,2]
[386645706,1758449446708,-228.45954699,0.00019726,2]
[386645708,1758449446717,-352.60021733,0.00019726,2]
[386645710,1758449446726,-486.10266892,0.00019726,2]
[386645712,1758449446735,-480.0,0.00019726,2]
[386645714,1758449446745,-480.0,0.00019726,2]
[386645715,1758449446755,-480.0,0.00019726,2]
[386645716,1758449446764,-500.0,0.00019726,2]
[386645718,1758449446773,-495.84396361,0.00019726,2]
[386645719,1758449446783,-500.0,0.00019726,2]
[386645720,1758449446792,-151.59304801,0.00019726,2]
[386645721,1758449446801,-152.46397795,0.00019726,2]
[386645722,1758449446810,-500.0,0.00019726,2]
[386645723,1758449446819,-480.0,0.00019726,2]
[386645724,1758449446829,-480.0,0.00019726,2]
[386645725,1758449446838,-480.0,0.00019726,2]
[386645726,1758449446848,-480.0,0.00019726,2]
[386645727,1758449446857,-480.0,0.00019726,2]
[386645728,1758449446866,-480.0,0.00019726,2]
[386645729,1758449446875,-480.0,0.00019726,2]
[386645730,1758449446885,-480.0,0.00019726,2]
[386645731,1758449446895,-480.0,0.00019726,2]
[386645732,1758449446903,-480.0,0.00019726,2]
[386645733,1758449446913,-546.65442753,0.00019726,2]
[386645734,1758449446922,-480.0,0.00019726,2]
[386645735,1758449446931,-480.0,0.00019726,2]
[386645736,1758449446941,-480.0,0.00019726,2]
[386645737,1758449446950,-480.0,0.00019726,2]
[386645738,1758449446959,-480.0,0.00019726,2]
[386645739,1758449446969,-480.0,0.00019726,2]
[386645740,1758449446979,-480.0,0.00019726,2]
[386645741,1758449446988,-480.0,0.00019726,2]
[386645742,1758449446998,-480.0,0.00019726,2]
[386645743,1758449447008,-480.0,0.00019726,2]
[386645744,1758449447017,-480.0,0.00019726,2]
[386645745,1758449447027,-480.0,0.00019726,2]
[386645746,1758449447036,-480.0,0.00019726,2]
[386645747,1758449447046,-480.0,0.00019726,2]
[386645748,1758449447055,-480.0,0.00019726,2]
[386645749,1758449447065,-480.0,0.00019726,2]
[386645750,1758449447074,-480.0,0.00019726,2]
[386645751,1758449447083,-480.0,0.00019726,2]
[386645752,1758449447092,-480.0,0.00019726,2]
[386645753,1758449447102,-480.0,0.00019726,2]
[386645754,1758449447112,-480.0,0.00019726,2]
[386645755,1758449447121,-480.0,0.00019726,2]
[386645756,1758449447130,-480.0,0.00019726,2]
[386645757,1758449447140,-480.0,0.00019726,2]
[386645758,1758449447149,-480.0,0.00019726,2]
[386645759,1758449447158,-489.99276791,0.00019726,2]
[386645760,1758449447167,-480.0,0.00019726,2]
[386645761,1758449447176,-480.0,0.00019726,2]
[386645762,1758449447185,-486.9727127,0.00019726,2]
[386645763,1758449447195,-480.0,0.00019726,2]
[386645764,1758449447272,-480.0,0.00019726,2]
[386645765,1758449447282,-480.0,0.00019726,2]
[386645766,1758449447291,-480.0,0.00019726,2]
[386645767,1758449447301,-480.0,0.00019726,2]
[386645768,1758449447311,-480.0,0.00019726,2]
[386645769,1758449447321,-480.0,0.00019726,2]
[386645770,1758449447330,-480.0,0.00019726,2]
[386645771,1758449447340,-480.0,0.00019726,2]
[386645772,1758449447349,-480.0,0.00019726,2]
[386645773,1758449447359,-480.0,0.00019726,2]
[386645774,1758449447369,-480.0,0.00019726,2]
[386645775,1758449447378,-480.0,0.00019726,2]
[386645776,1758449447388,-469.1788057,0.00019726,2]
[386645777,1758449447398,-480.0,0.00019726,2]
[386645778,1758449447407,-480.0,0.00019726,2]
[386645779,1758449447419,-480.0,0.00019726,2]
[386645780,1758449447428,-480.0,0.00019726,2]
[386645781,1758449447437,-480.0,0.00019726,2]
[386645782,1758449447447,-480.0,0.00019726,2]
[386645783,1758449447457,-895.0,0.00019726,2]
[386645784,1758449447466,-480.0,0.00019726,2]
[386645785,1758449447476,-480.0,0.00019726,2]
[386645786,1758449447485,-480.0,0.00019726,2]
[386645787,1758449447494,-480.0,0.00019726,2]
[386645788,1758449447503,-480.0,0.00019726,2]
[386645789,1758449447513,-480.0,0.00019726,2]
[386645790,1758449447523,-480.0,0.00019726,2]
[386645791,1758449447532,-495.21779081,0.00019726,2]
[386645792,1758449447541,-480.0,0.00019726,2]
[386645793,1758449447550,-480.0,0.00019726,2]
[386645794,1758449447560,-480.0,0.00019726,2]
[386645795,1758449447569,-480.0,0.00019726,2]
[386645796,1758449447579,-151.0,0.00019726,2]
[386645797,1758449447588,-151.0,0.00019726,2]
[386645798,1758449447597,-151.0,0.00019726,2]
[386645799,1758449447606,-151.0,0.00019726,2]
[386645800,1758449447616,-500.0,0.00019726,2]
[386645801,1758449447626,-151.0,0.00019726,2]
[386645802,1758449447635,-1963.68,0.00019726,2]
[386645803,1758449447645,-153.9250935,0.00019726,2]
[386645804,1758449447655,-151.0,0.00019726,2]
[386645805,1758449447664,-480.0,0.00019726,2]
[386645806,1758449447673,-151.0,0.00019726,2]
[386645807,1758449447683,-151.0,0.00019726,2]
[386645808,1758449447691,-151.0,0.00019726,2]
[386645809,1758449447701,-480.0,0.00019726,2]
[386645810,1758449447711,-500.0,0.00019726,2]
[386645811,1758449447720,-609.03,0.00019726,2]
[386645812,1758449447729,-1884.45,0.00019726,2]
[386645813,1758449447738,-480.0,0.00019726,2]
[386645814,1758449447747,-480.0,0.00019726,2]
[386645815,1758449447757,-922.44,0.00019726,2]
[386645816,1758449447766,-480.0,0.00019726,2]
[386645817,1758449447776,-532.81045015,0.00019726,2]
[386645818,1758449447786,-480.0,0.00019726,2]
[386645820,1758449447795,-480.0,0.00019726,2]
[386645822,1758449447805,-480.0,0.00019726,2]
[386645824,1758449447814,-480.0,0.00019726,2]
[386645825,1758449447824,-480.0,0.00019726,2]
[386645827,1758449447834,-480.0,0.00019726,2]
[386645829,1758449447843,-480.0,0.00019726,2]
[386645831,1758449447853,-480.0,0.00019726,2]
[386645833,1758449447863,-480.0,0.00019726,2]
[386645835,1758449447872,-556.54,0.00019726,2]
[386645836,1758449447882,-480.0,0.00019726,2]
[386645838,1758449447891,-480.0,0.00019726,2]
[386645840,1758449447900,-480.0,0.00019726,2]
[386645842,1758449447909,-480.0,0.00019726,2]
[386645843,1758449447919,-480.0,0.00019726,2]
[386645845,1758449447928,-480.0,0.00019726,2]
[386645847,1758449447939,-885.02,0.00019726,2]
[386645849,1758449447948,-937.39,0.00019726,2]
[386645850,1758449447957,-480.0,0.00019726,2]
[386645851,1758449447969,-912.4,0.00019726,2]
[386645852,1758449447979,-1198.91,0.00019726,2]
[386645853,1758449447990,-11451.54,0.00019726,2]
[386645854,1758449448000,-480.0,0.00019726,2]
[386645855,1758449448010,-1900.65,0.00019726,2]
[386645856,1758449448019,-480.0,0.00019726,2]
[386645857,1758449448030,-480.0,0.00019726,2]
[386645858,1758449448039,-480.0,0.00019726,2]
[386645859,1758449448049,-195.75892033,0.00019726,2]
[386645861,1758449448058,-187.97241117,0.00019726,2]
[386645863,1758449448067,-480.0,0.00019726,2]
[386645864,1758449448077,-499.32867483,0.00019726,2]
[386645865,1758449448086,-247.98633746,0.00019726,2]
[386645866,1758449448095,-151.0,0.00019726,2]
[386645867,1758449448104,-480.0,0.00019726,2]
[386645868,1758449448114,-500.0,0.00019726,2]
[386645869,1758449448123,-480.0,0.00019726,2]
[386645870,1758449448133,-480.0,0.00019726,2]
[386645871,1758449448142,-480.0,0.00019726,2]
[386645872,1758449448151,-405.04505308,0.00019726,2]
[386645873,1758449448160,-480.0,0.00019726,2]
[386645874,1758449448169,-480.0,0.00019726,2]
[386645875,1758449448179,-480.0,0.00019726,2]
[386645876,1758449448189,-480.0,0.00019726,2]
[386645878,1758449448199,-480.0,0.00019726,2]
[386645879,1758449448208,-506.80249744,0.00019726,2]
[386645880,1758449448217,-480.0,0.00019726,2]
[386645881,1758449448226,-480.0,0.00019726,2]
[386645882,1758449448236,-704.22,0.00019726,2]
[386645883,1758449448245,-480.0,0.00019726,2]
[386645884,1758449448254,-480.0,0.00019726,2]
[386645885,1758449448263,-480.0,0.00019726,2]
[386645886,1758449448274,-480.0,0.00019726,2]
[386645887,1758449448283,-480.0,0.00019726,2]
[386645888,1758449448294,-480.0,0.00019726,2]
[386645889,1758449448303,-597.0134419,0.00019726,2]
[386645890,1758449448313,-480.0,0.00019726,2]
[386645891,1758449448323,-480.0,0.00019726,2]
[386645892,1758449448332,-480.0,0.00019726,2]
[386645893,1758449448342,-480.0,0.00019726,2]
[386645894,1758449448351,-480.0,0.00019726,2]
[386645895,1758449448361,-480.0,0.00019726,2]
[386645896,1758449448371,-617.74203495,0.00019726,2]
[386645897,1758449448380,-480.0,0.00019726,2]
[386645898,1758449448389,-480.0,0.00019726,2]
[386645899,1758449448398,-480.0,0.00019726,2]
[386645900,1758449448408,-480.0,0.00019726,2]
[386645901,1758449448427,-480.0,0.00019726,2]
[386645902,1758449448439,-885.37,0.00019726,2]
[386645903,1758449448449,-480.0,0.00019726,2]
[386645904,1758449448458,-480.0,0.00019726,2]
[386645905,1758449448468,-2976.51,0.00019726,2]
[386645906,1758449448478,-480.0,0.00019726,2]
[386645907,1758449448488,-1683.02,0.00019726,2]
[386645908,1758449448497,-480.0,0.00019726,2]
[386645909,1758449448507,-480.0,0.00019726,2]
[386645910,1758449448517,-643.42,0.00019726,2]
[386645911,1758449448526,-581.85,0.00019726,2]
[386645912,1758449448601,-480.0,0.00019726,2]
[386645913,1758449448612,-480.0,0.00019726,2]
[386645914,1758449448622,-480.0,0.00019726,2]
[386645915,1758449448631,-480.0,0.00019726,2]
[386645916,1758449448641,-721.89,0.00019726,2]
[386645917,1758449448651,-480.0,0.00019726,2]
[386645918,1758449448661,-485.38448487,0.00019726,2]
[386645919,1758449448670,-480.0,0.00019726,2]
[386645920,1758449448679,-480.0,0.00019726,2]
[386645921,1758449448689,-966.67,0.00019726,2]
[386645922,1758449448698,-490.37610235,0.00019726,2]
[386645923,1758449448707,-480.0,0.00019726,2]
[386645924,1758449448717,-483.81229969,0.00019726,2]
[386645925,1758449448727,-480.0,0.00019726,2]
[386645926,1758449448737,-480.0,0.00019726,2]
[386645927,1758449448747,-480.0,0.00019726,2]
[386645928,1758449448756,-480.0,0.00019726,2]
[386645929,1758449448766,-595.29,0.00019726,2]
[386645930,1758449448775,-480.0,0.00019726,2]
[386645931,1758449448784,-480.0,0.00019726,2]
[386645932,1758449448794,-480.0,0.00019726,2]
[386645933,1758449448803,-480.0,0.00019726,2]
[386645934,1758449448813,-1353.47,0.00019726,2]
[386645935,1758449448824,-431.62687345,0.00019726,2]
[386645936,1758449448834,-259.22906788,0.00019746,2]
[386645937,1758449448843,-539.58,0.00019748,2]
[386645938,1758449448854,-500.0,0.00019773,2]
[386645939,1758449448863,-695.19,0.00019828,2]
[386645940,1758449448873,-13151.11681396,0.000199,2]
[386645941,1758449448883,-978.0,0.0001992,2]
[386645942,1758449448893,-634.0,0.0001992,2]
[386645943,1758449448902,-2158.0,0.0001992,2]
[386645944,1758449448912,-500.0,0.00019973,2]
[386645945,1758449448921,-500.0,0.00019973,2]
[386645946,1758449448931,-500.0,0.00019973,2]
[386645947,1758449448940,-500.0,0.00019973,2]
[386645948,1758449448950,-500.0,0.00019973,2]
[386645949,1758449448959,-500.0,0.00019973,2]
[386645950,1758449448968,-500.0,0.00019973,2]
[386645951,1758449448978,-500.0,0.00019973,2]
[386645952,1758449448988,-500.0,0.00019973,2]
[386645953,1758449448997,-500.0,0.00019973,2]
[386645954,1758449449008,-500.0,0.00019973,2]
[386645955,1758449449018,-500.0,0.00019973,2]
[386645956,1758449449027,-500.0,0.00019973,2]
[386645957,1758449449037,-500.0,0.00019973,2]
[386645958,1758449449046,-500.0,0.00019973,2]
[386645959,1758449449056,-250.0,0.00019985,2]
[386645960,1758449449066,-695.19,0.00019999,2]
[386645961,1758449449075,-695.19,0.00019999,2]
[386645962,1758449449084,-449.4,0.0002,2]
[386645963,1758449449094,-500.0,0.0002,2]
[386645964,1758449449104,-500.65471073,0.0002,2]
[386645965,1758449449113,-500.0,0.0002,2]
[386645966,1758449449123,-192.44332133,0.0002,2]
[386645967,1758449449132,-151.84551481,0.0002,2]
[386645968,1758449449142,-151.0,0.0002,2]
[386645969,1758449449152,-199.08738968,0.0002,2]
[386645970,1758449449161,-500.0,0.0002,2]
[386645971,1758449449171,-151.0,0.0002,2]
[386645972,1758449449180,-151.0,0.0002,2]
[386645973,1758449449190,-229.12008207,0.0002,2]
[386645974,1758449449199,-223.35293345,0.0002,2]
[386645975,1758449449208,-151.0,0.0002,2]
[386645976,1758449449217,-500.0,0.0002,2]
[386645977,1758449449227,-151.0,0.0002,2]
[386645978,1758449449236,-500.0,0.0002,2]
[386645979,1758449449246,-480.0,0.0002,2]